fUST/lending_fUST_20250330
["ID","MTS","AMOUNT","RATE_DAILY","PERIOD"]
[356856148,1743336662532,-4151.45,0.00021643,2]
[356856149,1743336662541,-2985.11,0.00021643,2]
[356856150,1743336662550,-500.0,0.00021643,2]
[356856151,1743336662559,-1413.31,0.00021643,2]
[356856152,1743336662568,-500.0,0.00021643,2]
[356856153,1743336662578,-500.0,0.00021643,2]
[356856154,1743336662587,-494.99738389,0.00021643,2]
[356856155,1743336662596,-500.0,0.00021643,2]
[356856156,1743336662606,-707.76,0.00021643,2]
[356856157,1743336662616,-500.0,0.00021643,2]
[356856158,1743336662625,-699.65,0.00021643,2]
[356856159,1743336662634,-500.0,0.00021643,2]
[356856160,1743336662643,-1550.34,0.00021643,2]
[356856161,1743336662653,-736.27,0.00021643,2]
[356856162,1743336662662,-944.78,0.00021643,2]
[356856163,1743336662671,-552.72,0.00021643,2]
[356856164,1743336662680,-1984.0,0.00021643,2]
[356856165,1743336662690,-500.0,0.00021643,2]
[356856166,1743336662700,-4192.73,0.00021643,2]
[356856167,1743336662709,-500.0,0.00021643,2]
[356856168,1743336662719,-4062.87,0.00021643,2]
[356856169,1743336662729,-1610.13,0.00021643,2]
[356856170,1743336662740,-500.0,0.00021643,2]
[356856171,1743336662750,-527.52,0.00021643,2]
[356856172,1743336662759,-551.98,0.00021643,2]
[356856173,1743336662768,-5745.56,0.00021643,2]
[356856174,1743336662777,-1105.77,0.00021643,2]
[356856175,1743336662787,-2204.43,0.00021643,2]
[356856176,1743336662796,-1201.49,0.00021643,2]
[356856177,1743336662805,-2246.36,0.00021643,2]
[356856178,1743336662815,-810.23,0.00021643,2]
[356856179,1743336662825,-1362.91,0.00021643,2]
[356856180,1743336662835,-2003.96,0.00021643,2]
[356856181,1743336662844,-929.62,0.00021643,2]
[356856182,1743336662854,-878.79,0.00021643,2]
[356856183,1743336662863,-500.0,0.00021643,2]
[356856184,1743336662873,-500.0,0.00021643,2]
[356856185,1743336662883,-500.0,0.00021643,2]
[356856186,1743336662892,-522.62,0.00021643,2]
[356856187,1743336662901,-3169.96,0.00021643,2]
[356856188,1743336662911,-500.0,0.00021643,2]
[356856189,1743336662920,-500.0,0.00021643,2]
[356856190,1743336662929,-863.37,0.00021643,2]
[356856191,1743336662938,-500.0,0.00021643,2]
[356856192,1743336662947,-784.51,0.00021643,2]
[356856193,1743336662956,-2366.19,0.00021643,2]
[356856194,1743336662965,-678.48,0.00021643,2]
[356856195,1743336662974,-5982.6,0.00021643,2]
[356856196,1743336662983,-500.0,0.00021643,2]
[356856197,1743336662993,-500.0,0.00021643,2]
[356856198,1743336663002,-3762.67,0.00021643,2]
[356856199,1743336663011,-15868.4,0.00021643,2]
[356856200,1743336663021,-710.42,0.00021643,2]
[356856201,1743336663030,-500.0,0.00021643,2]
[356856202,1743336663040,-6137.71,0.00021643,2]
[356856203,1743336663049,-4594.19,0.00021643,2]
[356856204,1743336663058,-792.46,0.00021643,2]
[356856205,1743336663068,-704.22,0.00021643,2]
[356856206,1743336663078,-2499.63,0.00021643,2]
[356856207,1743336663088,-1234.8,0.00021643,2]
[356856208,1743336663098,-5195.9,0.00021643,2]
[356856209,1743336663107,-1838.27,0.00021643,2]
[356856210,1743336663116,-12960.42,0.00021643,2]
[356856211,1743336663126,-500.0,0.00021643,2]
[356856212,1743336663135,-1000.0,0.00021643,7]
[356856213,1743336663144,-2670.09,0.00021643,2]
[356856214,1743336663154,-500.0,0.00021643,2]
[356856215,1743336663165,-2660.8,0.00021643,2]
[356856216,1743336663175,-5869.07,0.00021643,2]
[356856217,1743336663184,-986.66,0.00021643,2]
[356856218,1743336663193,-762.09,0.00021643,2]
[356856219,1743336663202,-615.49,0.00021643,2]
[356856220,1743336663211,-674.35,0.00021643,2]
[356856221,1743336663221,-2378.15,0.00021643,2]
[356856222,1743336663230,-1800.76,0.00021643,2]
[356856223,1743336663240,-1297.51,0.00021643,2]
[356856224,1743336663249,-458.11575614,0.00021643,2]
[356856225,1743336663258,-500.0,0.00021643,2]
[356856226,1743336663267,-1268.95,0.00021643,2]
[356856227,1743336663276,-524.33,0.00021643,2]
[356856228,1743336663286,-500.0,0.00021643,2]
[356856229,1743336663294,-881.02,0.00021643,2]
[356856230,1743336663304,-15685.99,0.00021643,2]
[356856231,1743336663313,-1200.54,0.00021643,2]
[356856232,1743336663322,-500.0,0.00021643,2]
[356856233,1743336663332,-629.01,0.00021643,2]
[356856234,1743336663341,-8052.37,0.00021643,2]
[356856235,1743336663351,-946.43,0.00021643,2]
[356856236,1743336663361,-503.91,0.00021643,2]
[356856237,1743336663370,-573.79,0.00021643,2]
[356856238,1743336663379,-500.0,0.00021643,2]
[356856239,1743336663388,-808.8,0.00021643,2]
[356856240,1743336663399,-500.0,0.00021643,2]
[356856241,1743336663409,-767.64,0.00021643,2]
[356856242,1743336663418,-804.42,0.00021643,2]
[356856243,1743336663428,-737.11,0.00021643,2]
[356856244,1743336663438,-500.0,0.00021643,2]
[356856245,1743336663448,-8539.25,0.00021643,2]
[356856246,1743336663458,-540.62,0.00021643,2]
[356856247,1743336663469,-3723.83,0.00021643,2]
[356856248,1743336663478,-160.0,0.0002165,7]
[356856249,1743336663488,-237.0,0.000217,2]
[356856250,1743336663498,-359.1180114,0.00021781,2]
[356856251,1743336663508,-359.1180114,0.00021781,2]
[356856252,1743336663517,-316.8007055,0.00021781,2]
[356856253,1743336663527,-500.0,0.00021917,2]
[356856254,1743336663536,-500.0,0.00021917,2]
[356856255,1743336663545,-728.46,0.00021917,2]
[356856256,1743336663555,-997.04,0.00021917,2]
[356856257,1743336663564,-500.0,0.00021917,2]
[356856258,1743336663573,-500.0,0.00021917,2]
[356856259,1743336663583,-500.0,0.00021917,2]
[356856260,1743336663592,-971.02,0.00021917,2]
[356856261,1743336663601,-500.0,0.00021917,2]
[356856262,1743336663611,-500.0,0.00021917,2]
[356856263,1743336663621,-500.0,0.00021917,2]
[356856264,1743336663631,-500.0,0.00021917,2]
[356856265,1743336663640,-586.47,0.00021917,2]
[356856266,1743336663650,-651.92,0.00021917,2]
[356856267,1743336663659,-500.0,0.00021917,2]
[356856268,1743336663668,-500.0,0.00021917,2]
[356856269,1743336663678,-500.0,0.00021917,2]
[356856270,1743336663688,-500.0,0.00021917,2]
[356856271,1743336663697,-694.25,0.00021917,2]
[356856272,1743336663706,-500.0,0.00021917,2]
[356856273,1743336663715,-909.26,0.00021917,2]
[356856274,1743336663724,-500.0,0.00021917,2]
[356856275,1743336663733,-508.9,0.00021917,2]
[356856276,1743336663743,-656.04,0.00021917,2]
[356856277,1743336663753,-500.0,0.00021917,2]
[356856278,1743336663763,-500.0,0.00021917,2]
[356856279,1743336663772,-500.0,0.00021917,2]
[356856280,1743336663783,-500.0,0.00021917,2]
[356856281,1743336663792,-500.0,0.00021917,2]
[356856282,1743336663807,-500.0,0.00021917,2]
[356856283,1743336663816,-500.0,0.00021917,2]
[356856284,1743336663827,-770.23,0.00021917,2]
[356856285,1743336663965,-1426.76,0.00021917,2]
[356856286,1743336663975,-500.0,0.00021917,2]
[356856287,1743336663984,-739.19,0.00021917,2]
[356856288,1743336663994,-500.0,0.00021917,2]
[356856289,1743336664003,-500.0,0.00021917,2]
[356856290,1743336664013,-466.63654285,0.00021917,2]
[356856291,1743336664022,-646.65460116,0.00021917,2]
[356856292,1743336664032,-500.0,0.00021917,2]
[356856293,1743336664042,-500.0,0.00021917,2]
[356856294,1743336664051,-305.18163921,0.00021917,2]
[356856295,1743336664061,-572.06,0.00021917,2]
[356856296,1743336664070,-500.0,0.00021917,2]
[356856297,1743336664079,-500.0,0.00021917,2]
[356856298,1743336664088,-820.71,0.00021917,2]
[356856299,1743336664099,-500.0,0.00021917,2]
[356856300,1743336664108,-792.51,0.00021917,2]
[356856301,1743336664117,-500.0,0.00021917,2]
[356856302,1743336664127,-521.13102564,0.00021917,2]
[356856303,1743336664136,-500.0,0.00021917,2]
[356856304,1743336664145,-643.09,0.00021917,2]
[356856305,1743336664156,-500.0,0.00021917,2]
[356856306,1743336664165,-500.0,0.00021917,2]
[356856307,1743336664175,-500.0,0.00021917,2]
[356856308,1743336664185,-500.0,0.00021917,2]
[356856309,1743336664194,-500.0,0.00021917,2]
[356856310,1743336664204,-500.0,0.00021917,2]
[356856311,1743336664214,-1373.59,0.00021917,2]
[356856312,1743336664223,-500.0,0.00021917,2]
[356856313,1743336664232,-1089.35,0.00021917,2]
[356856314,1743336664242,-510.53,0.00021917,2]
[356856315,1743336664252,-500.0,0.00021917,2]
[356856316,1743336664262,-786.5,0.00021917,2]
[356856317,1743336664273,-500.0,0.00021917,2]
[356856318,1743336664283,-1995.85,0.00021917,2]
[356856319,1743336664292,-200.0,0.00021917,2]
[356856320,1743336664302,-1928.93,0.00021917,2]
[356856321,1743336664312,-523.74,0.00021917,2]
[356856322,1743336664323,-500.0,0.00021917,2]
[356856323,1743336664332,-523.69,0.00021917,2]
[356856324,1743336664343,-500.0,0.00021917,2]
[356856325,1743336664353,-513.67,0.00021917,2]
[356856326,1743336664363,-1946.49,0.00021917,2]
[356856327,1743336664373,-512.33,0.00021917,2]
[356856328,1743336664382,-1442.4,0.00021917,2]
[356856329,1743336664392,-500.0,0.00021917,2]
[356856330,1743336664402,-514.51,0.00021917,2]
[356856331,1743336664416,-500.0,0.00021917,2]
[356856332,1743336664425,-990.4,0.00021917,2]
[356856333,1743336664436,-942.64,0.00021917,2]
[356856334,1743336664446,-500.0,0.00021917,2]
[356856335,1743336664456,-500.0,0.00021917,2]
[356856336,1743336664466,-990.42,0.00021917,2]
[356856337,1743336664476,-500.0,0.00021917,2]
[356856338,1743336664486,-173.14500022,0.00021917,2]
[356856339,1743336664496,-500.0,0.00021917,2]
[356856340,1743336664506,-500.0,0.00021917,2]
[356856341,1743336664515,-500.0,0.00021917,2]
[356856342,1743336664526,-2586.18,0.00021917,2]
[356856343,1743336664535,-1024.32,0.00021917,2]
[356856344,1743336664546,-1087.6,0.00021917,2]
[356856345,1743336664556,-516.69,0.00021917,2]
[356856346,1743336664566,-500.0,0.00021917,2]
[356856347,1743336664576,-864.19,0.00021917,2]
[356856348,1743336664586,-683.23,0.00021917,2]
[356856349,1743336664595,-903.38,0.00021917,2]
[356856350,1743336664605,-500.0,0.00021917,2]
[356856351,1743336664614,-937.8,0.00021917,2]
[356856352,1743336664624,-500.0,0.00021917,2]
[356856353,1743336664634,-1131.56,0.00021917,2]
[356856354,1743336664644,-798.99,0.00021917,2]
[356856355,1743336664654,-1481.39,0.00021917,2]
[356856356,1743336664664,-500.0,0.00021917,2]
[356856357,1743336664674,-500.0,0.00021917,2]
[356856358,1743336664684,-500.0,0.00021917,2]
[356856359,1743336664694,-517.61,0.00021917,2]
[356856360,1743336664704,-500.0,0.00021917,2]
[356856361,1743336664713,-668.21,0.00021917,2]
[356856362,1743336664723,-687.74,0.00021917,2]
[356856363,1743336664732,-899.15,0.00021917,2]
[356856364,1743336664746,-707.97,0.00021917,2]
[356856365,1743336664755,-1296.96,0.00021917,2]
[356856366,1743336664765,-500.0,0.00021917,2]
[356856367,1743336664775,-500.0,0.00021917,2]
[356856368,1743336664785,-500.0,0.00021917,2]
[356856369,1743336664795,-1345.33,0.00021917,2]
[356856370,1743336664805,-500.0,0.00021917,2]
[356856371,1743336664815,-895.06,0.00021917,2]
[356856372,1743336664827,-2501.82,0.00021917,2]
[356856373,1743336664837,-500.0,0.00021917,2]
[356856374,1743336664847,-914.71,0.00021917,2]
[356856375,1743336664856,-500.0,0.00021917,2]
[356856376,1743336664867,-737.75,0.00021917,2]
[356856377,1743336664876,-500.0,0.00021917,2]
[356856378,1743336664885,-4129.73,0.00021917,2]
[356856379,1743336664895,-776.32,0.00021917,2]
[356856380,1743336664905,-500.0,0.00021917,2]
[356856381,1743336664917,-4902.77,0.00021917,2]
[356856382,1743336664934,-500.0,0.00021917,2]
[356856383,1743336664953,-500.0,0.00021917,2]
[356856384,1743336664967,-500.0,0.00021917,2]
[356856385,1743336664985,-1672.32,0.00021917,2]
[356856386,1743336665003,-643.85,0.00021917,2]
[356856387,1743336665023,-824.37,0.00021917,2]
[356856388,1743336665039,-4151.45,0.00021917,2]
[356856389,1743336665054,-2985.11,0.00021917,2]
[356856390,1743336665072,-500.0,0.00021917,2]
[356856391,1743336665087,-1413.31,0.00021917,2]
[356856392,1743336665100,-500.0,0.00021917,2]
[356856393,1743336665117,-500.0,0.00021917,2]
[356856394,1743336665135,-500.0,0.00021917,2]
[356856395,1743336665153,-707.76,0.00021917,2]
[356856396,1743336665171,-500.0,0.00021917,2]
[356856397,1743336665183,-699.65,0.00021917,2]
[356856398,1743336665199,-500.0,0.00021917,2]
[356856399,1743336665214,-1550.34,0.00021917,2]
[356856400,1743336665227,-736.27,0.00021917,2]
[356856401,1743336665243,-944.78,0.00021917,2]
[356856402,1743336665255,-552.72,0.00021917,2]
[356856403,1743336665270,-1984.0,0.00021917,2]
[356856404,1743336665285,-500.0,0.00021917,2]
[356856405,1743336665300,-4192.73,0.00021917,2]
[356856406,1743336665314,-500.0,0.00021917,2]
[356856407,1743336665329,-4062.87,0.00021917,2]
[356856408,1743336665343,-1610.13,0.00021917,2]
[356856409,1743336665357,-500.0,0.00021917,2]
[356856410,1743336665371,-527.52,0.00021917,2]
[356856411,1743336665385,-551.98,0.00021917,2]
[356856412,1743336665399,-5745.56,0.00021917,2]
[356856413,1743336665415,-1105.77,0.00021917,2]
[356856414,1743336665430,-2204.43,0.00021917,2]
[356856415,1743336665445,-1201.49,0.00021917,2]
[356856416,1743336665459,-2246.36,0.00021917,2]
[356856417,1743336665474,-810.23,0.00021917,2]
[356856418,1743336665489,-1362.91,0.00021917,2]
[356856419,1743336665503,-2003.96,0.00021917,2]
[356856420,1743336665517,-929.62,0.00021917,2]
[356856421,1743336665532,-878.79,0.00021917,2]
[356856422,1743336665546,-500.0,0.00021917,2]
[356856423,1743336665561,-500.0,0.00021917,2]
[356856424,1743336665576,-500.0,0.00021917,2]
[356856425,1743336665590,-522.62,0.00021917,2]
[356856426,1743336665604,-3169.96,0.00021917,2]
[356856427,1743336665618,-554.60767158,0.00021917,2]
[356856428,1743336665633,-500.0,0.00021917,2]
[356856429,1743336665647,-863.37,0.00021917,2]
[356856430,1743336665662,-500.0,0.00021917,2]
[356856431,1743336665675,-784.51,0.00021917,2]
[356856432,1743336665689,-2366.19,0.00021917,2]
[356856433,1743336665704,-678.48,0.00021917,2]
[356856434,1743336665718,-5982.6,0.00021917,2]
[356856435,1743336665732,-500.0,0.00021917,2]
[356856436,1743336665748,-500.0,0.00021917,2]
[356856437,1743336665763,-3762.67,0.00021917,2]
[356856438,1743336665778,-15868.4,0.00021917,2]
[356856439,1743336665793,-710.42,0.00021917,2]
[356856440,1743336665807,-500.0,0.00021917,2]
[356856441,1743336665821,-6137.71,0.00021917,2]
[356856442,1743336665835,-4594.19,0.00021917,2]
[356856443,1743336665849,-792.46,0.00021917,2]
[356856444,1743336665864,-704.22,0.00021917,2]
[356856445,1743336665878,-2499.63,0.00021917,2]
[356856446,1743336665892,-1234.8,0.00021917,2]
[356856447,1743336665908,-5195.9,0.00021917,2]
[356856448,1743336665922,-1838.27,0.00021917,2]
[356856449,1743336665937,-12960.42,0.00021917,2]
[356856450,1743336665951,-500.0,0.00021917,2]
[356856451,1743336665965,-1000.0,0.00021917,7]
[356856452,1743336665982,-2670.09,0.00021917,2]
[356856453,1743336665996,-500.0,0.00021917,2]
[356856454,1743336666011,-2660.8,0.00021917,2]
[356856455,1743336666025,-5869.07,0.00021917,2]
[356856456,1743336666038,-986.66,0.00021917,2]
[356856457,1743336666053,-762.09,0.00021917,2]
[356856458,1743336666068,-615.49,0.00021917,2]
[356856459,1743336666082,-674.35,0.00021917,2]
[356856460,1743336666096,-2378.15,0.00021917,2]
[356856461,1743336666111,-1800.76,0.00021917,2]
[356856462,1743336666125,-1297.51,0.00021917,2]
[356856463,1743336666139,-500.0,0.00021917,2]
[356856464,1743336666153,-1268.95,0.00021917,2]
[356856465,1743336666168,-524.33,0.00021917,2]
[356856466,1743336666182,-881.02,0.00021917,2]
[356856467,1743336666196,-15685.99,0.00021917,2]
[356856468,1743336666210,-1200.54,0.00021917,2]
[356856469,1743336666224,-500.0,0.00021917,2]
[356856470,1743336666238,-629.01,0.00021917,2]
[356856471,1743336666253,-8052.37,0.00021917,2]
[356856472,1743336666267,-946.43,0.00021917,2]
[356856473,1743336666281,-503.91,0.00021917,2]
[356856474,1743336666295,-573.79,0.00021917,2]
[356856475,1743336666309,-430.49812264,0.00021917,2]
[356856476,1743336666324,-808.8,0.00021917,2]
[356856477,1743336666335,-500.0,0.00021917,2]
[356856478,1743336666535,-767.64,0.00021917,2]
[356856479,1743336666560,-804.42,0.00021917,2]
[356856480,1743336666569,-737.11,0.00021917,2]
[356856481,1743336666579,-500.0,0.00021917,2]
[356856482,1743336666588,-8539.25,0.00021917,2]
[356856483,1743336666597,-540.62,0.00021917,2]
[356856484,1743336666606,-3723.83,0.00021917,2]
[356856485,1743336666615,-562.8515397,0.00021918,2]
[356856486,1743336666625,-562.8515397,0.00021918,2]
[356856487,1743336666634,-562.8515397,0.00021918,2]
[356856488,1743336666644,-562.8515397,0.00021918,2]
[356856489,1743336666654,-562.8515397,0.00021918,2]
[356856490,1743336666664,-562.8515397,0.00021918,2]
[356856491,1743336666674,-562.8515397,0.00021918,2]
[356856492,1743336666683,-150.29,0.00021918,2]
[356856493,1743336666693,-150.29,0.00021918,2]
[356856494,1743336666703,-151.23340453,0.00021918,2]
[356856495,1743336666713,-500.0,0.00021918,2]
[356856496,1743336666722,-500.0,0.00021918,2]
[356856497,1743336666732,-154.56845671,0.00021918,2]
[356856498,1743336666747,-151.08810337,0.00021918,2]
[356856499,1743336666756,-248.9999991,0.00021998,2]
[356856500,1743336666765,-836.20464454,0.00022,2]
[356856501,1743336666775,-2000.0,0.00022,4]
[356856502,1743336666784,-155.03417078,0.00022055,2]
[356856503,1743336666793,-150.29,0.00022055,2]
[356856504,1743336666803,-500.0,0.00022055,2]
[356856505,1743336666812,-500.0,0.00022055,2]
[356856506,1743336666821,-2062.889597,0.000221,2]
[356856507,1743336666831,-500.0,0.00022191,2]
[356856508,1743336666848,-500.0,0.00022191,2]
[356856509,1743336666860,-728.46,0.00022191,2]
[356856510,1743336666870,-997.04,0.00022191,2]
[356856511,1743336666880,-500.0,0.00022191,2]
[356856512,1743336666890,-500.0,0.00022191,2]
[356856513,1743336666900,-500.0,0.00022191,2]
[356856514,1743336666910,-971.02,0.00022191,2]
[356856515,1743336666920,-500.0,0.00022191,2]
[356856516,1743336666931,-500.0,0.00022191,2]
[356856517,1743336666941,-500.0,0.00022191,2]
[356856518,1743336666950,-500.0,0.00022191,2]
[356856519,1743336666960,-586.47,0.00022191,2]
[356856520,1743336666970,-651.92,0.00022191,2]
[356856521,1743336666980,-500.0,0.00022191,2]
[356856522,1743336666990,-500.0,0.00022191,2]
[356856523,1743336667000,-444.80676993,0.00022191,2]
[356856524,1743336667010,-500.0,0.00022191,2]
[356856525,1743336667019,-694.25,0.00022191,2]
[356856526,1743336667029,-500.0,0.00022191,2]
[356856527,1743336667039,-909.26,0.00022191,2]
[356856528,1743336667049,-500.0,0.00022191,2]
[356856529,1743336667059,-508.9,0.00022191,2]
[356856530,1743336667069,-656.04,0.00022191,2]
[356856531,1743336667078,-500.0,0.00022191,2]
[356856532,1743336667088,-500.0,0.00022191,2]
[356856533,1743336667098,-500.0,0.00022191,2]
[356856534,1743336667108,-500.0,0.00022191,2]
[356856535,1743336667118,-278.68949019,0.00022191,2]
[356856536,1743336667127,-500.0,0.00022191,2]
[356856537,1743336667137,-500.0,0.00022191,2]
[356856538,1743336667147,-770.23,0.00022191,2]
[356856539,1743336667157,-1426.76,0.00022191,2]
[356856540,1743336667166,-500.0,0.00022191,2]
[356856541,1743336667177,-739.19,0.00022191,2]
[356856542,1743336667186,-335.02419154,0.00022191,2]
[356856543,1743336667196,-500.0,0.00022191,2]
[356856544,1743336667206,-500.0,0.00022191,2]
[356856545,1743336667215,-473.05231962,0.00022191,2]
[356856546,1743336667225,-572.06,0.00022191,2]
[356856547,1743336667235,-500.0,0.00022191,2]
[356856548,1743336667246,-500.0,0.00022191,2]
[356856549,1743336667255,-820.71,0.00022191,2]
[356856550,1743336667265,-500.0,0.00022191,2]
[356856551,1743336667276,-792.51,0.00022191,2]
[356856552,1743336667286,-500.0,0.00022191,2]
[356856553,1743336667296,-500.0,0.00022191,2]
[356856554,1743336667306,-643.09,0.00022191,2]
[356856555,1743336667315,-500.0,0.00022191,2]
[356856556,1743336667325,-500.0,0.00022191,2]
[356856557,1743336667335,-500.0,0.00022191,2]
[356856558,1743336667345,-500.0,0.00022191,2]
[356856559,1743336667355,-500.0,0.00022191,2]
[356856560,1743336667365,-500.0,0.00022191,2]
[356856561,1743336667374,-1373.59,0.00022191,2]
[356856562,1743336667384,-500.0,0.00022191,2]
[356856563,1743336667393,-1089.35,0.00022191,2]
[356856564,1743336667403,-510.53,0.00022191,2]
[356856565,1743336667413,-384.16933026,0.00022191,2]
[356856566,1743336667423,-786.5,0.00022191,2]
[356856567,1743336667434,-500.0,0.00022191,2]
[356856568,1743336667444,-1995.85,0.00022191,2]
[356856569,1743336667454,-200.0,0.00022191,2]
[356856570,1743336667463,-1928.93,0.00022191,2]
[356856571,1743336667473,-523.74,0.00022191,2]
[356856572,1743336667483,-500.0,0.00022191,2]
[356856573,1743336667494,-523.69,0.00022191,2]
[356856574,1743336667505,-500.0,0.00022191,2]
[356856575,1743336667514,-513.67,0.00022191,2]
[356856576,1743336667524,-1946.49,0.00022191,2]
[356856577,1743336667534,-512.33,0.00022191,2]
[356856578,1743336667544,-1442.4,0.00022191,2]
[356856579,1743336667554,-500.0,0.00022191,2]
[356856580,1743336667564,-514.51,0.00022191,2]
[356856581,1743336667574,-500.0,0.00022191,2]
[356856582,1743336667584,-990.4,0.00022191,2]
[356856583,1743336667594,-942.64,0.00022191,2]
[356856584,1743336667604,-500.0,0.00022191,2]
[356856585,1743336667615,-500.0,0.00022191,2]
[356856586,1743336667626,-990.42,0.00022191,2]
[356856587,1743336667636,-500.0,0.00022191,2]
[356856588,1743336667647,-500.0,0.00022191,2]
[356856589,1743336667657,-500.0,0.00022191,2]
[356856590,1743336667667,-500.0,0.00022191,2]
[356856591,1743336667676,-2586.18,0.00022191,2]
[356856592,1743336667686,-1024.32,0.00022191,2]
[356856593,1743336667696,-1087.6,0.00022191,2]
[356856594,1743336667706,-516.69,0.00022191,2]
[356856595,1743336667716,-500.0,0.00022191,2]
[356856596,1743336667726,-864.19,0.00022191,2]
[356856597,1743336667735,-683.23,0.00022191,2]
[356856598,1743336667749,-903.38,0.00022191,2]
[356856599,1743336667758,-500.0,0.00022191,2]
[356856600,1743336667767,-937.8,0.00022191,2]
[356856601,1743336667776,-500.0,0.00022191,2]
[356856602,1743336667787,-1131.56,0.00022191,2]
[356856603,1743336667796,-798.99,0.00022191,2]
[356856604,1743336667806,-1481.39,0.00022191,2]
[356856605,1743336667815,-500.0,0.00022191,2]
[356856606,1743336667827,-500.0,0.00022191,2]
[356856607,1743336667836,-500.0,0.00022191,2]
[356856608,1743336667846,-517.61,0.00022191,2]
[356856609,1743336667856,-500.0,0.00022191,2]
[356856610,1743336667865,-668.21,0.00022191,2]
[356856611,1743336667875,-687.74,0.00022191,2]
[356856612,1743336667884,-899.15,0.00022191,2]
[356856613,1743336667894,-707.97,0.00022191,2]
[356856614,1743336667903,-1296.96,0.00022191,2]
[356856615,1743336667913,-500.0,0.00022191,2]
[356856616,1743336667923,-500.0,0.00022191,2]
[356856617,1743336667932,-500.0,0.00022191,2]
[356856618,1743336667941,-1345.33,0.00022191,2]
[356856619,1743336667951,-500.0,0.00022191,2]
[356856620,1743336667960,-895.06,0.00022191,2]
[356856621,1743336667970,-2501.82,0.00022191,2]
[356856622,1743336667979,-500.0,0.00022191,2]
[356856623,1743336667988,-914.71,0.00022191,2]
[356856624,1743336667998,-500.0,0.00022191,2]
[356856625,1743336668007,-737.75,0.00022191,2]
[356856626,1743336668017,-500.0,0.00022191,2]
[356856627,1743336668026,-4129.73,0.00022191,2]
[356856628,1743336668035,-776.32,0.00022191,2]
[356856629,1743336668045,-500.0,0.00022191,2]
[356856630,1743336668055,-4902.77,0.00022191,2]
[356856631,1743336668064,-500.0,0.00022191,2]
[356856632,1743336668074,-500.0,0.00022191,2]
[356856633,1743336668083,-500.0,0.00022191,2]
[356856634,1743336668093,-1672.32,0.00022191,2]
[356856635,1743336668103,-643.85,0.00022191,2]
[356856636,1743336668112,-824.37,0.00022191,2]
[356856637,1743336668121,-4151.45,0.00022191,2]
[356856638,1743336668131,-2985.11,0.00022191,2]
[356856639,1743336668140,-500.0,0.00022191,2]
[356856640,1743336668149,-1413.31,0.00022191,2]
[356856641,1743336668160,-500.0,0.00022191,2]
[356856642,1743336668169,-500.0,0.00022191,2]
[356856643,1743336668179,-500.0,0.00022191,2]
[356856644,1743336668189,-707.76,0.00022191,2]
[356856645,1743336668199,-500.0,0.00022191,2]
[356856646,1743336668208,-699.65,0.00022191,2]
[356856647,1743336668217,-500.0,0.00022191,2]